Workbook

Sheet 5月份产蛋
A1: 2025年5月份 弥勒育种场（产蛋舍） 月报表
A2: 鸡舍 | B2: 品种 | C2: 5月末 日龄 | D2: 上月存栏 | F2: 本月转入 | H2: 本月死亡 | J2: 本月淘汰 | L2: 本月销售 | N2: 本月转出 | P2: 本月存栏 | R2: 月耗料Kg | V2: 产蛋性能 | AC2: 成活率 % | AD2: 备注
D3: ♂ | E3: ♀ | F3: ♂ | G3: ♀ | H3: ♂ | I3: ♀ | J3: ♂ | K3: ♀ | L3: ♂ | M3: ♀ | N3: ♂ | O3: ♀ | P3: ♂ | Q3: ♀ | R3: 公鸡料 | S3: 产蛋料 | T3: 过渡料 | U3: 育成料 | V3: 受精蛋 | W3: 合格蛋 | X3: 畸形蛋 | Y3: 破蛋 | Z3: 合计 | AA3: 种蛋 合格率 | AB3: 月均 产蛋率
A4: 产蛋1舍 | B4: A系第1批 | C4: 247 | D4: 60 | E4: 653 | F4: 63 | G4: 644 | H4: 4 | I4: 18 | J4: 4 | K4: 4 | L4: 0 | M4: 0 | N4: 0 | O4: 0 | P4: =D4+F4-H4-J4-L4-N4 -> 115 | Q4: =E4+G4-I4-K4-M4-O4 -> 1275 | R4: 0 | S4: 0 | T4: 0 | U4: 0 | V4: 4011 | W4: =18069-V4 -> 14058 | X4: 1970 | Y4: 1698 | Z4: =V4+W4+X4+Y4 -> 21737 | AA4: =(V4+W4)/Z4 -> 0.831255463 | AB4: =Z4/Q4/30 -> 0.5682875817 | AC4: =1-(H4+I4+J4+K4)/(D4+E4+F4+G4) -> 0.9788732394 | AD4: 组建家系挑鸡，A2批次转入63只公鸡，645只母鸡
B5: A系第2批 | C5: 207 | D5: 65 | E5: 647 | F5: 0 | G5: 0 | H5: 1 | I5: 0 | J5: 1 | K5: 3 | L5: 0 | M5: 0 | N5: 63 | O5: 644 | P5: 0 | Q5: 0 | R5: 0 | S5: 0 | T5: 0 | U5: 0 | V5: 0 | W5: 0 | X5: 0 | Y5: 0 | Z5: =V5+W5+X5+Y5 -> 0 | AB5: =Z5/Q5/30 ->  | AC5: =1-(H5+I5+J5+K5)/(D5+E5+F5+G5) -> 0.9929775281
A6: 合计 | D6: =SUM(D4:D5) -> 125 | E6: =SUM(E4:E5) -> 1300 | F6: 63 | G6: 644 | H6: 5 | I6: 18 | J6: 5 | K6: 7 | L6: 0 | M6: 0 | N6: 63 | O6: 644 | P6: 115 | Q6: 1275 | R6: 0 | S6: 0 | T6: 0 | U6: 0 | V6: 4011 | W6: 14058 | X6: 1970 | Y6: 1698 | Z6: 21737 | AA6: 0.831255463 | AB6: 0.5682875817 | AC6: 0.9835834897
A7: 产蛋2舍 | B7: A系第3批 | C7: 227 | D7: 55 | E7: 565 | F7: 64 | G7: 569 | H7: 0 | I7: 8 | J7: 4 | K7: 4 | L7: 0 | M7: 8 | N7: 0 | O7: 0 | P7: 115 | Q7: 1114 | R7: 0 | S7: 0 | T7: 0 | U7: 0 | V7: 0 | W7: 13277 | X7: 1665 | Y7: 1561 | Z7: 16503 | AA7: 0.8045203902 | AB7: 0.4938061041 | AC7: 0.9872306464 | AD7: 组建家系挑鸡，A4批次转入64只公鸡，569只母鸡
B8: A系第4批 | C8: 186 | D8: 64 | E8: 576 | F8: 0 | G8: 0 | H8: 0 | I8: 4 | J8: 0 | K8: 3 | L8: 0 | M8: 0 | N8: 64 | O8: 569 | P8: 0 | Q8: 0 | R8: 0 | S8: 0 | T8: 0 | U8: 0 | V8: 0 | W8: 0 | X8: 0 | Y8: 0 | Z8: 0 | AC8: 0.9890625
A9: 合计 | D9: =SUM(D7:D8) -> 119 | E9: =SUM(E7:E8) -> 1141 | F9: 64 | G9: 569 | H9: 0 | I9: 12 | J9: 4 | K9: 7 | L9: 0 | M9: 8 | N9: 64 | O9: 569 | P9: 115 | Q9: 1114 | R9: =SUM(R7:R8) -> 0 | S9: 0 | T9: 0 | U9: 0 | V9: 0 | W9: 13277 | X9: 1665 | Y9: 1561 | Z9: 16503 | AA9: 0.8045203902 | AB9: 0.4938061041 | AC9: 0.9878499736
A10: 产蛋3舍 | B10: N系第2批 | C10: 362 | D10: 294 | E10: 1969 | F10: 0 | G10: 0 | H10: 5 | I10: 15 | J10: 10 | K10: 17 | L10: 0 | M10: 1937 | N10: 60 | O10: 0 | P10: =D10+F10-H10-J10-L10-N10 -> 219 | Q10: =E10+G10-I10-K10-M10-O10 -> 0 | V10: 0 | W10: 28977 | X10: 463 | Y10: 1582 | Z10: =V10+W10+X10+Y10 -> 31022 | AA10: =(V10+W10)/Z10 -> 0.9340790407 | AC10: =1-(H10+I10+J10+K10)/(D10+E10+F10+G10) -> 0.9792311091 | AD10: 公鸡转饭堂60只
A11: 合计 | D11: =SUM(D10:D10) -> 294 | E11: 1969 | F11: 0 | G11: 0 | H11: 5 | I11: 15 | J11: 10 | K11: 17 | L11: 0 | M11: 1937 | N11: 60 | O11: 0 | P11: 219 | Q11: 0 | R11: 0 | S11: 0 | T11: 0 | U11: 0 | V11: 0 | W11: 28977 | X11: 463 | Y11: 1582 | Z11: 31022 | AA11: 0.9340790407 | AC11: 0.9792311091
A12: 产蛋4舍 | B12: D系第1批 | C12: 199 | D12: 197 | E12: 1081 | F12: 3 | G12: 0 | H12: 1 | I12: 9 | J12: 0 | K12: 6 | L12: 0 | M12: 13 | N12: 0 | O12: 3 | P12: =D12+F12-H12-J12-L12-N12 -> 199 | Q12: =E12+G12-I12-K12-M12-O12 -> 1050 | R12: 0 | S12: 0 | T12: 0 | U12: 0 | V12: 0 | W12: 15133 | X12: 1213 | Y12: 988 | Z12: =V12+W12+X12+Y12 -> 17334 | AA12: 0.8730241145 | AB12: 0.5502857143 | AC12: 0.987509758 | AD12: 公母轻点实数，母鸡中有3只公鸡
B13: D系第2批 | C13: 189 | D13: 183 | E13: 1129 | F13: 10 | G13: 0 | H13: 1 | I13: 8 | J13: 1 | K13: 1 | L13: 0 | M13: 29 | N13: 0 | O13: 10 | P13: =D13+F13-H13-J13-L13-N13 -> 191 | Q13: =E13+G13-I13-K13-M13-O13 -> 1081 | R13: 0 | S13: 0 | T13: 0 | U13: 0 | V13: 0 | W13: 11168 | X13: 1145 | Y13: 736 | Z13: 13049 | AA13: 0.8558510231 | AB13: 0.4023743447 | AC13: 0.9916792738 | AD13: 公母轻点实数，母鸡中有10只公鸡
A14: 合计 | D14: =SUM(D12:D13) -> 380 | E14: =SUM(E12:E13) -> 2210 | F14: 13 | G14: 0 | H14: 2 | I14: 17 | J14: 1 | K14: 7 | L14: 0 | M14: 42 | N14: 0 | O14: 13 | P14: 390 | Q14: 2131 | R14: 0 | S14: 0 | T14: 0 | U14: 0 | V14: 0 | W14: 26301 | X14: 2358 | Y14: 1724 | Z14: 30383 | AA14: 0.8656485535 | AB14: 0.4752541843 | AC14: 0.9896273531
A15: 产蛋5舍 | B15: M系第1批次 | C15: 293 | D15: 255 | E15: 996 | F15: 0 | G15: 0 | H15: 16 | I15: 16 | J15: 7 | K15: 4 | L15: 0 | M15: 0 | N15: 0 | O15: 0 | P15: =D15+F15-H15-J15-L15-N15 -> 232 | Q15: =E15+G15-I15-K15-M15-O15 -> 976 | R15: 0 | S15: 0 | T15: 0 | U15: 0 | V15: 10678 | W15: =14704-V15 -> 4026 | X15: 833 | Y15: 1972 | Z15: 17509 | AA15: 0.839796676 | AB15: 0.5979849727 | AC15: 0.965627498
A16: 合计 | D16: =SUM(D15:D15) -> 255 | E16: =SUM(E15:E15) -> 996 | F16: 0 | G16: 0 | H16: 16 | I16: 16 | J16: 7 | K16: 4 | L16: 0 | M16: 0 | N16: 0 | O16: 0 | P16: 232 | Q16: 976 | R16: 0 | S16: 0 | T16: 0 | U16: 0 | V16: 10678 | W16: 4026 | X16: 833 | Y16: 1972 | Z16: 17509 | AA16: 0.839796676 | AB16: =Z16/Q16/30 -> 0.5979849727 | AC16: 0.965627498
A17: 产蛋6舍 | B17: M系第3批次 | C17: 272 | D17: 225 | E17: 956 | F17: 0 | G17: 0 | H17: 4 | I17: 9 | J17: 5 | K17: 10 | L17: 0 | M17: 0 | N17: 0 | O17: 0 | P17: 216 | Q17: 937 | R17: 0 | S17: 0 | T17: 0 | U17: 0 | V17: 3637 | W17: =15069-V17 -> 11432 | X17: 1162 | Y17: 2430 | Z17: =V17+W17+X17+Y17 -> 18661 | AA17: 0.807512995 | AB17: 0.6638562789 | AC17: 0.9762912786
A18: 合计 | D18: =SUM(D17:D17) -> 225 | E18: 956 | F18: 0 | G18: 0 | H18: 4 | I18: 9 | J18: 5 | K18: 10 | L18: 0 | M18: 0 | N18: 0 | O18: 0 | P18: 216 | Q18: 937 | R18: 0 | S18: 0 | T18: 0 | U18: 0 | V18: 3637 | W18: 11432 | X18: 1162 | Y18: 2430 | Z18: 18661 | AA18: 0.807512995 | AB18: 0.6638562789 | AC18: 0.9762912786
A19: 产蛋7舍 | B19: C系第1批 | C19: 103 | D19: 204 | E19: 1737 | F19: 0 | G19: 0 | H19: 1 | I19: 36 | J19: 4 | K19: 13 | L19: 0 | M19: 0 | N19: 0 | O19: 0 | P19: 199 | Q19: 1688 | R19: 0 | S19: 0 | T19: 0 | U19: 0 | V19: 0 | W19: 0 | X19: 0 | Y19: 0 | Z19: 0 | AB19: 0 | AC19: 0.972179289
A20: 合计 | D20: =SUM(D19:D19) -> 204 | E20: 1737 | F20: 0 | G20: 0 | H20: 1 | I20: 36 | J20: 4 | K20: 13 | L20: 0 | M20: 0 | N20: 0 | O20: 0 | P20: 199 | Q20: 1688 | R20: 0 | S20: 0 | T20: 0 | U20: 0 | V20: 0 | W20: 0 | X20: 0 | Y20: 0 | Z20: 0 | AB20: 0 | AC20: 0.972179289
A21: 产蛋8舍 | B21: D系第2批 | C21: 510 | D21: 126 | E21: 1883 | F21: 0 | G21: 0 | H21: 4 | I21: 29 | J21: 1 | K21: 41 | L21: 121 | M21: 1813 | N21: 0 | O21: 0 | P21: =D21+F21-H21-J21-L21-N21 -> 0 | Q21: =E21+G21-I21-K21-M21-O21 -> 0 | R21: 0 | S21: 0 | T21: 0 | U21: 0 | V21: 0 | W21: 22771 | X21: 607 | Y21: 4344 | Z21: 27722 | AA21: 0.821405382 | AC21: 0.962667994 | AD21: 公母轻点实数，全部售卖
A22: 合计 | D22: =SUM(D21:D21) -> 126 | E22: 1883 | F22: 0 | G22: 0 | H22: 4 | I22: 29 | J22: 1 | K22: 41 | L22: 121 | M22: 1813 | N22: 0 | O22: 0 | P22: 0 | Q22: 0 | R22: 0 | S22: 0 | T22: 0 | U22: 0 | V22: 0 | W22: 22771 | X22: 607 | Y22: 4344 | Z22: 27722 | AA22: 0.821405382 | AC22: 0.962667994
A23: 产蛋8舍 | B23: C系第2批 | C23: 116 | D23: 0 | E23: 0 | F23: 237 | G23: 1992 | H23: 0 | I23: 1 | J23: 1 | K23: 6 | L23: 0 | M23: 0 | N23: 0 | O23: 0 | P23: =D23+F23-H23-J23-L23-N23 -> 236 | Q23: =E23+G23-I23-K23-M23-O23 -> 1985 | R23: 0 | S23: 0 | T23: 0 | U23: 0 | V23: 0 | W23: 0 | X23: 0 | Y23: 0 | Z23: =V23+W23+X23+Y23 -> 0 | AB23: 0 | AC23: 0.9964109466 | AD23: 育成6舍C2转入公鸡237只，母鸡1992只
A24: 合计 | D24: =SUM(D23:D23) -> 0 | E24: 0 | F24: 237 | G24: 1992 | H24: 0 | I24: 1 | J24: 1 | K24: 6 | L24: 0 | M24: 0 | N24: 0 | O24: 0 | P24: 236 | Q24: 1985 | R24: 0 | S24: 0 | T24: 0 | U24: 0 | V24: 0 | W24: 0 | X24: 0 | Y24: 0 | Z24: 0 | AB24: 0 | AC24: 0.9964109466
A25: 产蛋9舍 | B25: D系第5批 | C25: 478 | D25: 86 | E25: 1321 | F25: 0 | G25: 0 | H25: 2 | I25: 50 | J25: 0 | K25: 22 | L25: 84 | M25: 1249 | N25: 0 | O25: 0 | P25: =D25+F25-H25-J25-L25-N25 -> 0 | Q25: =E25+G25-I25-K25-M25-O25 -> 0 | R25: 0 | S25: 0 | T25: 0 | U25: 0 | V25: 0 | W25: 13630 | X25: 588 | Y25: 3496 | Z25: =V25+W25+X25+Y25 -> 17714 | AA25: 0.7694478943 | AC25: 0.947405828 | AD25: 公母轻点实数，全部售卖
A26: 合计 | D26: =SUM(D25:D25) -> 86 | E26: 1321 | F26: 0 | G26: 0 | H26: 2 | I26: 50 | J26: 0 | K26: 22 | L26: 84 | M26: 1249 | N26: 0 | O26: 0 | P26: 0 | Q26: 0 | R26: 0 | S26: 0 | T26: 0 | U26: 0 | V26: 0 | W26: 13630 | X26: 588 | Y26: 3496 | Z26: 17714 | AA26: 0.7694478943 | AC26: 0.947405828
A27: 产蛋10舍 | B27: D系第3批 | C27: 178 | D27: 144 | E27: 1482 | F27: 27 | G27: 0 | H27: 7 | I27: 13 | J27: 0 | K27: 14 | L27: 0 | M27: 20 | N27: 0 | O27: 27 | P27: =D27+F27-H27-J27-L27-N27 -> 164 | Q27: =E27+G27-I27-K27-M27-O27 -> 1408 | R27: 0 | S27: 0 | T27: 0 | U27: 0 | V27: 0 | W27: 730 | X27: 86 | Y27: 73 | Z27: =V27+W27+X27+Y27 -> 889 | AA27: 0.8211473566 | AB27: 0.02104640152 | AC27: 0.979431337 | AD27: 公母轻点实数，母鸡中有27只公鸡
A28: 合计 | D28: =SUM(D27:D27) -> 144 | E28: 1482 | F28: 27 | G28: 0 | H28: 7 | I28: 13 | J28: 0 | K28: 14 | L28: 0 | M28: 20 | N28: 0 | O28: 27 | P28: 164 | Q28: 1408 | R28: 0 | S28: 0 | T28: 0 | U28: 0 | V28: 0 | W28: 730 | X28: 86 | Y28: 73 | Z28: 889 | AA28: 0.8211473566 | AB28: 0.02104640152 | AC28: 0.979431337
A29: 产蛋12舍 | B29: C系第2批 | C29: 456 | D29: 204 | E29: 2988 | F29: 0 | G29: 0 | H29: 3 | I29: 41 | J29: 6 | K29: 23 | L29: 0 | M29: 25 | N29: 195 | O29: 0 | P29: =D29+F29-H29-J29-L29-N29 -> 0 | Q29: =E29+G29-I29-K29-M29-O29 -> 2899 | R29: 0 | S29: 0 | T29: 0 | U29: 0 | V29: 0 | W29: 44195 | X29: 797 | Y29: 2595 | Z29: =V29+W29+X29+Y29 -> 47587 | AA29: 0.9287200286 | AB29: 0.5471656893 | AC29: 0.9771303258 | AD29: 公鸡195只转出至祖代场
A30: 合计 | D30: =SUM(D29:D29) -> 204 | E30: =SUM(E29:E29) -> 2988 | F30: 0 | G30: 0 | H30: 3 | I30: 41 | J30: 6 | K30: 23 | L30: 0 | M30: 25 | N30: 195 | O30: 0 | P30: 0 | Q30: 2899 | R30: 0 | S30: 0 | T30: 0 | U30: 0 | V30: 0 | W30: 44195 | X30: 797 | Y30: 2595 | Z30: 47587 | AA30: 0.9287200286 | AB30: 0.5471656893 | AC30: 0.9771303258
A32: 产蛋舍合计 | D32: =D6+D9+D11+D14+D16+D18+D20+D22+D26+D28+D30 -> 2162 | E32: =E6+E9+E11+E14+E16+E18+E20+E22+E26+E28+E30 -> 17983 | F32: 167 | G32: 1213 | H32: 49 | I32: 256 | J32: 43 | K32: 165 | L32: 205 | M32: 5094 | N32: 382 | O32: 1253 | P32: 1650 | Q32: 12428 | R32: 0 | S32: 0 | T32: 0 | U32: 0 | V32: 18326 | W32: 179397 | X32: 10529 | Y32: 21475 | Z32: 229727 | AA32: =(V32+W32)/Z32 -> 0.8606868152 | AB32: =Z32/Q32/31 -> 0.5962784348 | AC32: =1-(H32+I32+J32+K32)/(D32+E32+F32+G32) -> 0.9761672474
A34: 转出195只公鸡到祖代。
A35: 拉入祖代孵化房：3637枚受精蛋。
A36: 拉入育种场孵化房：15327枚。
A37: 合计受精蛋：18964枚。
A38: 拉入化验室做白血病检测种蛋：7725枚。
A39: 5月底料塔存料：小鸡前期料：2130Kg，小鸡后期料：0Kg，育成料：1220Kg，过渡料：160Kg，产蛋前料：2800Kg，产蛋中期：2430Kg，公鸡料：1600Kg。
